[Event "Titled Tuesday Blitz November 15 Early 2022"]
[White "Kowalczyk, Pawel"]
[Black "Dixit, Nikhil"]
[WhiteFideId "1130641"]
[BlackFideId "5059534"]
[WhiteElo "2324"]
[BlackElo "2207"]
[Result "0-1"]
[Round "04"]
[TimeControl "180+1"]
[Date "2022.11.16"]
[WhiteClock "0:00:16"]
[BlackClock "0:00:16"]

1. e4 {[%clk 0:03:00]}  e6 {[%clk 0:02:59]} 2. d4 {[%clk 0:03:00]}  d5 {[%clk 0:02:59]} 3. Nd2 {[%clk 0:03:01]}  c5 {[%clk 0:02:58]} 4. Ngf3 {[%clk 0:02:59]}  cxd4 {[%clk 0:02:51]} 5. Nxd4 {[%clk 0:02:59]}  Nc6 {[%clk 0:02:51]} 6. Nxc6 {[%clk 0:02:56]}  bxc6 {[%clk 0:02:50]} 7. Bd3 {[%clk 0:02:56]}  Nf6 {[%clk 0:02:48]} 8. O-O {[%clk 0:02:56]}  Be7 {[%clk 0:02:44]} 9. e5 {[%clk 0:02:51]}  Nd7 {[%clk 0:02:43]} 10. f4 {[%clk 0:02:51]}  Nc5 {[%clk 0:02:37]} 11. Qg4 {[%clk 0:02:49]}  g6 {[%clk 0:02:34]} 12. Be2 {[%clk 0:02:47]}  h5 {[%clk 0:02:30]} 13. Qf3 {[%clk 0:02:44]}  Qb6 {[%clk 0:02:28]} 14. Kh1 {[%clk 0:02:44]}  Bb7 {[%clk 0:02:28]} 15. c4 {[%clk 0:02:43]}  h4 {[%clk 0:02:19]} 16. Rb1 {[%clk 0:02:41]}  Ne4 {[%clk 0:02:06]} 17. Nxe4 {[%clk 0:02:35]}  dxe4 {[%clk 0:02:06]} 18. Qxe4 {[%clk 0:02:36]}  c5 {[%clk 0:02:07]} 19. Qe3 {[%clk 0:02:32]}  h3 {[%clk 0:02:07]} 20. Bf3 {[%clk 0:02:32]}  hxg2+ {[%clk 0:02:07]} 21. Kxg2 {[%clk 0:02:32]}  Rd8 {[%clk 0:02:01]} 22. b3 {[%clk 0:02:23]}  Rd4 {[%clk 0:01:40]} 23. Bxb7 {[%clk 0:02:14]}  Qxb7+ {[%clk 0:01:38]} 24. Qf3 {[%clk 0:02:15]}  Qxf3+ {[%clk 0:01:36]} 25. Rxf3 {[%clk 0:02:13]}  Rd1 {[%clk 0:01:35]} 26. h3 {[%clk 0:02:08]}  g5 {[%clk 0:01:29]} 27. fxg5 {[%clk 0:02:03]}  Bxg5 {[%clk 0:01:25]} 28. Bxg5 {[%clk 0:02:03]}  Rxb1 {[%clk 0:01:26]} 29. Rd3 {[%clk 0:02:03]}  O-O {[%clk 0:01:26]} 30. Bf6 {[%clk 0:02:02]}  Rb2+ {[%clk 0:01:17]} 31. Kf3 {[%clk 0:01:56]}  Rxa2 {[%clk 0:01:12]} 32. Rd1 {[%clk 0:01:43]}  Rb8 {[%clk 0:01:09]} 33. Rg1+ {[%clk 0:01:39]}  Kf8 {[%clk 0:01:04]} 34. Bg7+ {[%clk 0:01:29]}  Ke8 {[%clk 0:01:00]} 35. h4 {[%clk 0:01:28]}  Rxb3+ {[%clk 0:00:59]} 36. Kg4 {[%clk 0:01:28]}  Rc2 {[%clk 0:00:54]} 37. h5 {[%clk 0:01:27]}  Rxc4+ {[%clk 0:00:54]} 38. Kg5 {[%clk 0:01:27]}  Rcc3 {[%clk 0:00:52]} 39. Kh6 {[%clk 0:01:12]}  c4 {[%clk 0:00:40]} 40. Bf6 {[%clk 0:01:08]}  Rd3 {[%clk 0:00:38]} 41. Rg8+ {[%clk 0:01:04]}  Kd7 {[%clk 0:00:38]} 42. Rd8+ {[%clk 0:01:04]}  Kc6 {[%clk 0:00:37]} 43. Rc8+ {[%clk 0:01:04]}  Kd5 {[%clk 0:00:38]} 44. Kg7 {[%clk 0:01:05]}  Rh3 {[%clk 0:00:32]} 45. h6 {[%clk 0:01:00]}  Rbg3+ {[%clk 0:00:32]} 46. Kxf7 {[%clk 0:01:00]}  Rxh6 {[%clk 0:00:31]} 47. Rd8+ {[%clk 0:01:00]}  Ke4 {[%clk 0:00:31]} 48. Kxe6 {[%clk 0:01:00]}  c3 {[%clk 0:00:31]} 49. Rc8 {[%clk 0:01:00]}  Rh2 {[%clk 0:00:29]} 50. Kf7 {[%clk 0:00:59]}  Rh7+ {[%clk 0:00:26]} 51. Kf8 {[%clk 0:00:56]}  Rf3 {[%clk 0:00:23]} 52. Kg8 {[%clk 0:00:53]}  Rb7 {[%clk 0:00:22]} 53. Bh8 {[%clk 0:00:47]}  Rg3+ {[%clk 0:00:21]} 54. Kf8 {[%clk 0:00:47]}  Rf3+ {[%clk 0:00:20]} 55. Kg8 {[%clk 0:00:48]}  Kd3 {[%clk 0:00:20]} 56. e6 {[%clk 0:00:44]}  c2 {[%clk 0:00:20]} 57. Bg7 {[%clk 0:00:39]}  Rg3 {[%clk 0:00:20]} 58. Rc3+ {[%clk 0:00:39]}  Ke2 {[%clk 0:00:17]} 59. Rxg3 {[%clk 0:00:28]}  c1=Q {[%clk 0:00:17]} 60. Bf8 {[%clk 0:00:18]}  Qc8 {[%clk 0:00:16]} 61. e7 {[%clk 0:00:16]}  Rxe7 {[%clk 0:00:16]} 0-1


[Site "https://www.chess.com"]

[Event "Titled Tuesday Blitz November 15 Early 2022"]
[White "Kryakvin, Dmitry"]
[Black "Orlov, Georgi"]
[WhiteFideId "4153278"]
[BlackFideId "2011271"]
[WhiteElo "2414"]
[BlackElo "2539"]
[Result "1/2-1/2"]
[Round "04"]
[TimeControl "180+1"]
[Date "2022.11.16"]
[WhiteClock "0:00:24"]
[BlackClock "0:01:22"]

1. d4 {[%clk 0:02:32]}  Nf6 {[%clk 0:02:59]} 2. c4 {[%clk 0:02:30]}  Nc6 {[%clk 0:02:58]} 3. Nf3 {[%clk 0:02:30]}  e6 {[%clk 0:02:59]} 4. g3 {[%clk 0:02:29]}  Bb4+ {[%clk 0:02:58]} 5. Bd2 {[%clk 0:02:29]}  Qe7 {[%clk 0:02:58]} 6. Bg2 {[%clk 0:02:29]}  Bxd2+ {[%clk 0:02:58]} 7. Nbxd2 {[%clk 0:02:30]}  d6 {[%clk 0:02:58]} 8. O-O {[%clk 0:02:29]}  e5 {[%clk 0:02:54]} 9. d5 {[%clk 0:02:29]}  Nb8 {[%clk 0:02:54]} 10. e4 {[%clk 0:02:29]}  O-O {[%clk 0:02:48]} 11. Ne1 {[%clk 0:02:29]}  a5 {[%clk 0:02:47]} 12. Nd3 {[%clk 0:02:29]}  Na6 {[%clk 0:02:47]} 13. f4 {[%clk 0:02:29]}  Nd7 {[%clk 0:02:36]} 14. f5 {[%clk 0:02:26]}  f6 {[%clk 0:02:30]} 15. g4 {[%clk 0:02:26]}  Ndc5 {[%clk 0:02:29]} 16. Nxc5 {[%clk 0:02:25]}  Nxc5 {[%clk 0:02:28]} 17. Qe2 {[%clk 0:02:25]}  Bd7 {[%clk 0:02:24]} 18. Kh1 {[%clk 0:02:24]}  Rfb8 {[%clk 0:02:22]} 19. Bf3 {[%clk 0:02:14]}  b5 {[%clk 0:02:21]} 20. b3 {[%clk 0:02:14]}  bxc4 {[%clk 0:02:18]} 21. Nxc4 {[%clk 0:02:03]}  a4 {[%clk 0:02:18]} 22. bxa4 {[%clk 0:02:03]}  Rxa4 {[%clk 0:02:17]} 23. Rfb1 {[%clk 0:01:37]}  Rab4 {[%clk 0:02:16]} 24. Rxb4 {[%clk 0:01:29]}  Rxb4 {[%clk 0:02:16]} 25. Qc2 {[%clk 0:01:30]}  Qd8 {[%clk 0:02:13]} 26. Rb1 {[%clk 0:01:26]}  Ba4 {[%clk 0:02:05]} 27. Qc1 {[%clk 0:01:15]}  Qb8 {[%clk 0:01:52]} 28. Nd2 {[%clk 0:00:55]}  Nd3 {[%clk 0:01:38]} 29. Rxb4 {[%clk 0:00:52]}  Qxb4 {[%clk 0:01:30]} 30. Qxc7 {[%clk 0:00:46]}  Qxd2 {[%clk 0:01:26]} 31. Qc8+ {[%clk 0:00:45]}  Kf7 {[%clk 0:01:24]} 32. Qe6+ {[%clk 0:00:43]}  Kf8 {[%clk 0:01:24]} 33. Qxd6+ {[%clk 0:00:43]}  Ke8 {[%clk 0:01:22]} 34. Qb8+ {[%clk 0:00:24]} 1/2-1/2


[Site "https://www.chess.com"]

[Event "Titled Tuesday Blitz November 15 Early 2022"]
[White "Kula, Robert"]
[Black "Kaidanov, Gregory"]
[WhiteFideId "1101218"]
[BlackFideId "2008564"]
[WhiteElo "2184"]
[BlackElo "2641"]
[Result "0-1"]
[Round "04"]
[TimeControl "180+1"]
[Date "2022.11.16"]
[WhiteClock "0:00:13"]
[BlackClock "0:00:39"]

1. d4 {[%clk 0:02:56]}  d5 {[%clk 0:02:59]} 2. c4 {[%clk 0:02:56]}  e6 {[%clk 0:02:59]} 3. Nc3 {[%clk 0:02:55]}  c6 {[%clk 0:02:59]} 4. e3 {[%clk 0:02:54]}  Nf6 {[%clk 0:02:59]} 5. Nf3 {[%clk 0:02:54]}  Nbd7 {[%clk 0:02:59]} 6. Bd3 {[%clk 0:02:54]}  Be7 {[%clk 0:02:59]} 7. a3 {[%clk 0:02:54]}  O-O {[%clk 0:02:59]} 8. c5 {[%clk 0:02:53]}  e5 {[%clk 0:02:51]} 9. dxe5 {[%clk 0:02:49]}  Ng4 {[%clk 0:02:50]} 10. b4 {[%clk 0:02:49]}  Ngxe5 {[%clk 0:02:47]} 11. Bc2 {[%clk 0:02:44]}  Nxf3+ {[%clk 0:02:40]} 12. gxf3 {[%clk 0:02:41]}  Bf6 {[%clk 0:02:38]} 13. Bb2 {[%clk 0:02:41]}  Ne5 {[%clk 0:02:37]} 14. Rg1 {[%clk 0:02:03]}  Nc4 {[%clk 0:02:35]} 15. Qd3 {[%clk 0:02:01]}  g6 {[%clk 0:02:35]} 16. Rb1 {[%clk 0:01:56]}  Re8 {[%clk 0:02:32]} 17. Bb3 {[%clk 0:01:51]}  Nxb2 {[%clk 0:02:30]} 18. Rxb2 {[%clk 0:01:51]}  Bf5 {[%clk 0:02:29]} 19. Qd2 {[%clk 0:01:27]}  d4 {[%clk 0:02:28]} 20. Ne4 {[%clk 0:01:07]}  Bxe4 {[%clk 0:02:25]} 21. fxe4 {[%clk 0:01:07]}  dxe3 {[%clk 0:02:19]} 22. Qxd8 {[%clk 0:01:03]}  Raxd8 {[%clk 0:02:18]} 23. Rc2 {[%clk 0:01:03]}  exf2+ {[%clk 0:02:16]} 24. Rxf2 {[%clk 0:01:00]}  Rxe4+ {[%clk 0:02:10]} 25. Re2 {[%clk 0:00:59]}  Bc3+ {[%clk 0:02:05]} 26. Kf1 {[%clk 0:00:57]}  Rxe2 {[%clk 0:02:02]} 27. Kxe2 {[%clk 0:00:57]}  Rd2+ {[%clk 0:02:01]} 28. Ke3 {[%clk 0:00:57]}  Rb2 {[%clk 0:01:42]} 29. Bc4 {[%clk 0:00:56]}  Bf6 {[%clk 0:01:13]} 30. Rd1 {[%clk 0:00:52]}  Bg5+ {[%clk 0:01:13]} 31. Kf3 {[%clk 0:00:50]}  Rd2 {[%clk 0:01:12]} 32. Re1 {[%clk 0:00:37]}  Kf8 {[%clk 0:01:09]} 33. Re4 {[%clk 0:00:31]}  Rxh2 {[%clk 0:01:03]} 34. Rd4 {[%clk 0:00:31]}  Rh4 {[%clk 0:01:01]} 35. Rxh4 {[%clk 0:00:30]}  Bxh4 {[%clk 0:01:01]} 36. Kg4 {[%clk 0:00:30]}  Be7 {[%clk 0:01:00]} 37. Kf4 {[%clk 0:00:29]}  h5 {[%clk 0:01:00]} 38. Be2 {[%clk 0:00:28]}  Bf6 {[%clk 0:00:55]} 39. Bf3 {[%clk 0:00:25]}  Bb2 {[%clk 0:00:50]} 40. a4 {[%clk 0:00:25]}  Ba3 {[%clk 0:00:50]} 41. b5 {[%clk 0:00:26]}  Bxc5 {[%clk 0:00:49]} 42. bxc6 {[%clk 0:00:25]}  bxc6 {[%clk 0:00:49]} 43. Bxc6 {[%clk 0:00:26]}  Kg7 {[%clk 0:00:49]} 44. Kg5 {[%clk 0:00:25]}  Be3+ {[%clk 0:00:46]} 45. Kh4 {[%clk 0:00:25]}  Kh6 {[%clk 0:00:46]} 46. Kg3 {[%clk 0:00:25]}  f5 {[%clk 0:00:46]} 47. a5 {[%clk 0:00:25]}  Bd2 {[%clk 0:00:45]} 48. a6 {[%clk 0:00:25]}  Be3 {[%clk 0:00:45]} 49. Be8 {[%clk 0:00:24]}  Bb6 {[%clk 0:00:45]} 50. Bd7 {[%clk 0:00:24]}  Kg5 {[%clk 0:00:44]} 51. Kf3 {[%clk 0:00:24]}  h4 {[%clk 0:00:42]} 52. Be8 {[%clk 0:00:24]}  Kf6 {[%clk 0:00:43]} 53. Bd7 {[%clk 0:00:22]}  g5 {[%clk 0:00:43]} 54. Bc8 {[%clk 0:00:22]}  g4+ {[%clk 0:00:43]} 55. Kg2 {[%clk 0:00:22]}  Kg5 {[%clk 0:00:43]} 56. Bd7 {[%clk 0:00:22]}  f4 {[%clk 0:00:43]} 57. Be6 {[%clk 0:00:21]}  h3+ {[%clk 0:00:44]} 58. Kh1 {[%clk 0:00:20]}  Kh4 {[%clk 0:00:44]} 59. Bf5 {[%clk 0:00:18]}  f3 {[%clk 0:00:42]} 60. Be4 {[%clk 0:00:15]}  f2 {[%clk 0:00:40]} 61. Bd3 {[%clk 0:00:14]}  g3 {[%clk 0:00:39]} 62. Bf1 {[%clk 0:00:14]}  g2+ {[%clk 0:00:38]} 63. Bxg2 {[%clk 0:00:14]}  hxg2+ {[%clk 0:00:38]} 64. Kxg2 {[%clk 0:00:14]}  Kg4 {[%clk 0:00:39]} 65. Kf1 {[%clk 0:00:14]}  Kg3 {[%clk 0:00:38]} 66. Ke2 {[%clk 0:00:13]}  Kg2 {[%clk 0:00:38]} 67. Kd2 {[%clk 0:00:13]}  f1=Q {[%clk 0:00:39]} 0-1


[Site "https://www.chess.com"]

[Event "Titled Tuesday Blitz November 15 Early 2022"]
[White "Lehtosaari, Mauri"]
[Black "Fajdetic, Hrvoje"]
[WhiteFideId "501999"]
[BlackFideId "14501945"]
[WhiteElo "2500"]
[BlackElo "2172"]
[Result "1-0"]
[Round "04"]
[TimeControl "180+1"]
[Date "2022.11.16"]
[WhiteClock "0:00:08"]
[BlackClock "0:00:04"]

1. d4 {[%clk 0:03:00]}  e6 {[%clk 0:02:52]} 2. Nf3 {[%clk 0:03:00]}  f5 {[%clk 0:02:53]} 3. Bf4 {[%clk 0:03:00]}  Nf6 {[%clk 0:02:53]} 4. e3 {[%clk 0:02:59]}  b6 {[%clk 0:02:53]} 5. h3 {[%clk 0:02:58]}  Bb7 {[%clk 0:02:54]} 6. Be2 {[%clk 0:02:58]}  Bd6 {[%clk 0:02:50]} 7. O-O {[%clk 0:02:42]}  Bxf4 {[%clk 0:02:44]} 8. exf4 {[%clk 0:02:43]}  O-O {[%clk 0:02:41]} 9. c4 {[%clk 0:02:29]}  Ne4 {[%clk 0:02:36]} 10. Nc3 {[%clk 0:02:28]}  c5 {[%clk 0:02:20]} 11. dxc5 {[%clk 0:02:23]}  bxc5 {[%clk 0:02:21]} 12. Nd2 {[%clk 0:02:10]}  Nxc3 {[%clk 0:02:19]} 13. bxc3 {[%clk 0:02:11]}  Qc7 {[%clk 0:02:16]} 14. g3 {[%clk 0:02:07]}  Nc6 {[%clk 0:02:13]} 15. Bf3 {[%clk 0:02:01]}  Ne7 {[%clk 0:02:03]} 16. Bxb7 {[%clk 0:01:58]}  Qxb7 {[%clk 0:02:04]} 17. Rb1 {[%clk 0:01:55]}  Qc6 {[%clk 0:02:01]} 18. Nf3 {[%clk 0:01:54]}  d6 {[%clk 0:02:00]} 19. Ng5 {[%clk 0:01:54]}  Rf6 {[%clk 0:01:58]} 20. Re1 {[%clk 0:01:51]}  Qd7 {[%clk 0:01:56]} 21. Qf3 {[%clk 0:01:42]}  Re8 {[%clk 0:01:38]} 22. Rb7 {[%clk 0:01:39]}  Qc8 {[%clk 0:01:30]} 23. h4 {[%clk 0:01:17]}  h6 {[%clk 0:01:30]} 24. Nh3 {[%clk 0:01:17]}  Nc6 {[%clk 0:01:24]} 25. Rbb1 {[%clk 0:01:12]}  Na5 {[%clk 0:01:21]} 26. Qd3 {[%clk 0:01:08]}  Qa6 {[%clk 0:01:18]} 27. Rb5 {[%clk 0:01:05]}  d5 {[%clk 0:01:12]} 28. Rxc5 {[%clk 0:00:47]}  dxc4 {[%clk 0:01:04]} 29. Qd7 {[%clk 0:00:43]}  Ref8 {[%clk 0:00:56]} 30. Rc7 {[%clk 0:00:37]}  R6f7 {[%clk 0:00:53]} 31. Rd1 {[%clk 0:00:17]}  Rxd7 {[%clk 0:00:26]} 32. Rdxd7 {[%clk 0:00:18]}  Rf6 {[%clk 0:00:25]} 33. Rxg7+ {[%clk 0:00:17]}  Kf8 {[%clk 0:00:25]} 34. Rh7 {[%clk 0:00:17]}  Ke8 {[%clk 0:00:22]} 35. Rxa7 {[%clk 0:00:15]}  Qc8 {[%clk 0:00:20]} 36. Rac7 {[%clk 0:00:11]}  Qd8 {[%clk 0:00:16]} 37. Rcg7 {[%clk 0:00:10]}  Rf8 {[%clk 0:00:15]} 38. h5 {[%clk 0:00:10]}  Nc6 {[%clk 0:00:15]} 39. Ng5 {[%clk 0:00:09]}  Qd1+ {[%clk 0:00:13]} 40. Kg2 {[%clk 0:00:09]}  Qd5+ {[%clk 0:00:13]} 41. Kh2 {[%clk 0:00:09]}  Qd2 {[%clk 0:00:11]} 42. Nh3 {[%clk 0:00:08]}  Qxc3 {[%clk 0:00:08]} 43. Rc7 {[%clk 0:00:08]}  Nd4 {[%clk 0:00:04]} 44. Rc8# {[%clk 0:00:08]} 1-0


[Site "https://www.chess.com"]

[Event "Titled Tuesday Blitz November 15 Early 2022"]
[White "Leiva, Gianmarco"]
[Black "Janaszak, Dawid"]
[WhiteFideId "3804399"]
[BlackFideId "1119206"]
[WhiteElo "2286"]
[BlackElo "2226"]
[Result "0-1"]
[Round "04"]
[TimeControl "180+1"]
[Date "2022.11.16"]
[WhiteClock "0:00:32"]
[BlackClock "0:00:51"]

1. e4 {[%clk 0:03:00]}  c5 {[%clk 0:02:58]} 2. Nf3 {[%clk 0:03:01]}  Nc6 {[%clk 0:02:58]} 3. Bb5 {[%clk 0:03:01]}  g6 {[%clk 0:02:57]} 4. Ba4 {[%clk 0:02:54]}  Bg7 {[%clk 0:02:56]} 5. c3 {[%clk 0:02:54]}  Nf6 {[%clk 0:02:53]} 6. Bc2 {[%clk 0:02:42]}  e5 {[%clk 0:02:49]} 7. d4 {[%clk 0:02:35]}  cxd4 {[%clk 0:02:44]} 8. cxd4 {[%clk 0:02:36]}  exd4 {[%clk 0:02:44]} 9. Nxd4 {[%clk 0:02:34]}  O-O {[%clk 0:02:42]} 10. O-O {[%clk 0:02:32]}  Re8 {[%clk 0:02:28]} 11. Nxc6 {[%clk 0:02:25]}  bxc6 {[%clk 0:02:29]} 12. Nc3 {[%clk 0:02:25]}  d5 {[%clk 0:02:27]} 13. exd5 {[%clk 0:02:15]}  Nxd5 {[%clk 0:02:26]} 14. Na4 {[%clk 0:01:57]}  Qh4 {[%clk 0:02:14]} 15. Qf3 {[%clk 0:01:47]}  Ba6 {[%clk 0:02:09]} 16. Bd2 {[%clk 0:01:10]}  Bxf1 {[%clk 0:02:07]} 17. Rxf1 {[%clk 0:01:10]}  Rab8 {[%clk 0:01:57]} 18. Bb3 {[%clk 0:01:08]}  Qe4 {[%clk 0:01:50]} 19. Qg3 {[%clk 0:01:00]}  Qe2 {[%clk 0:01:43]} 20. Bf4 {[%clk 0:00:54]}  Rb4 {[%clk 0:01:25]} 21. Be3 {[%clk 0:00:38]}  Rg4 {[%clk 0:01:17]} 22. Qd6 {[%clk 0:00:35]}  Nxe3 {[%clk 0:01:07]} 23. Bxf7+ {[%clk 0:00:32]}  Kh8 {[%clk 0:00:51]} 0-1


[Site "https://www.chess.com"]

[Event "Titled Tuesday Blitz November 15 Early 2022"]
[White "Madaminov, Mukhiddin"]
[Black "Papasimakopoulos, Alexandros"]
[WhiteFideId "14210703"]
[BlackFideId "4244125"]
[WhiteElo "2341"]
[BlackElo "2365"]
[Result "1-0"]
[Round "04"]
[TimeControl "180+1"]
[Date "2022.11.15"]
[WhiteClock "0:00:17"]
[BlackClock "0:00:01"]

1. d4 {[%clk 0:03:00]}  e6 {[%clk 0:02:41]} 2. Nc3 {[%clk 0:03:00]}  d5 {[%clk 0:02:39]} 3. Bf4 {[%clk 0:03:01]}  Bb4 {[%clk 0:02:36]} 4. e3 {[%clk 0:02:55]}  Nf6 {[%clk 0:02:36]} 5. Ne2 {[%clk 0:02:55]}  O-O {[%clk 0:02:34]} 6. a3 {[%clk 0:02:54]}  Bd6 {[%clk 0:02:35]} 7. Qd2 {[%clk 0:02:51]}  c5 {[%clk 0:02:31]} 8. Bxd6 {[%clk 0:02:28]}  Qxd6 {[%clk 0:02:31]} 9. Ng3 {[%clk 0:02:29]}  Nc6 {[%clk 0:02:30]} 10. Be2 {[%clk 0:02:14]}  e5 {[%clk 0:02:04]} 11. dxe5 {[%clk 0:01:37]}  Qxe5 {[%clk 0:02:05]} 12. O-O {[%clk 0:01:34]}  d4 {[%clk 0:01:42]} 13. exd4 {[%clk 0:01:30]}  Qxd4 {[%clk 0:01:39]} 14. Rad1 {[%clk 0:01:24]}  Be6 {[%clk 0:01:21]} 15. Qc1 {[%clk 0:01:13]}  Qh4 {[%clk 0:01:20]} 16. Rfe1 {[%clk 0:01:10]}  Nd4 {[%clk 0:01:16]} 17. Nb5 {[%clk 0:01:07]}  Nxe2+ {[%clk 0:01:12]} 18. Nxe2 {[%clk 0:01:08]}  Bc4 {[%clk 0:00:53]} 19. Nd6 {[%clk 0:01:06]}  Bxe2 {[%clk 0:00:36]} 20. Rxe2 {[%clk 0:01:07]}  Rad8 {[%clk 0:00:36]} 21. h3 {[%clk 0:01:03]}  b6 {[%clk 0:00:33]} 22. Ree1 {[%clk 0:00:54]}  g6 {[%clk 0:00:26]} 23. Qe3 {[%clk 0:00:27]}  Rd7 {[%clk 0:00:20]} 24. Nb5 {[%clk 0:00:26]}  Rxd1 {[%clk 0:00:19]} 25. Rxd1 {[%clk 0:00:26]}  Re8 {[%clk 0:00:20]} 26. Qf3 {[%clk 0:00:26]}  Re5 {[%clk 0:00:14]} 27. Nxa7 {[%clk 0:00:22]}  Rf5 {[%clk 0:00:13]} 28. Qg3 {[%clk 0:00:23]}  Qe4 {[%clk 0:00:13]} 29. Qc3 {[%clk 0:00:19]}  Qb7 {[%clk 0:00:06]} 30. Nb5 {[%clk 0:00:19]}  h5 {[%clk 0:00:01]} 31. Nd6 {[%clk 0:00:19]}  Qd7 {[%clk 0:00:01]} 32. Rd3 {[%clk 0:00:17]} 1-0


[Site "https://www.chess.com"]

[Event "Titled Tuesday Blitz November 15 Early 2022"]
[White "Melikhov, Evgeny V."]
[Black "Shapiro, Daniel"]
[WhiteFideId "4122046"]
[BlackFideId "2001780"]
[WhiteElo "2169"]
[BlackElo "2287"]
[Result "0-1"]
[Round "04"]
[TimeControl "180+1"]
[Date "2022.11.16"]
[WhiteClock "0:00:02"]
[BlackClock "0:00:25"]

1. d4 {[%clk 0:03:00]}  Nf6 {[%clk 0:02:59]} 2. c4 {[%clk 0:03:00]}  e6 {[%clk 0:02:58]} 3. Nc3 {[%clk 0:03:00]}  Bb4 {[%clk 0:02:58]} 4. Qc2 {[%clk 0:02:59]}  d5 {[%clk 0:02:54]} 5. cxd5 {[%clk 0:02:59]}  exd5 {[%clk 0:02:53]} 6. Bg5 {[%clk 0:02:58]}  c6 {[%clk 0:02:52]} 7. e3 {[%clk 0:02:55]}  Nbd7 {[%clk 0:02:48]} 8. Bd3 {[%clk 0:02:52]}  h6 {[%clk 0:02:48]} 9. Bh4 {[%clk 0:02:50]}  O-O {[%clk 0:02:45]} 10. Ne2 {[%clk 0:02:50]}  Re8 {[%clk 0:02:42]} 11. O-O-O {[%clk 0:02:44]}  a5 {[%clk 0:02:40]} 12. Rhg1 {[%clk 0:02:34]}  Be7 {[%clk 0:02:33]} 13. g4 {[%clk 0:02:31]}  Ne4 {[%clk 0:02:30]} 14. Bxe7 {[%clk 0:02:27]}  Qxe7 {[%clk 0:02:29]} 15. Bxe4 {[%clk 0:02:22]}  dxe4 {[%clk 0:02:28]} 16. g5 {[%clk 0:01:51]}  hxg5 {[%clk 0:02:26]} 17. h4 {[%clk 0:01:46]}  gxh4 {[%clk 0:02:06]} 18. Rg4 {[%clk 0:01:45]}  f5 {[%clk 0:01:51]} 19. Rg6 {[%clk 0:01:40]}  Nf8 {[%clk 0:01:44]} 20. Rg2 {[%clk 0:01:29]}  Kf7 {[%clk 0:01:27]} 21. Rdg1 {[%clk 0:01:26]}  g6 {[%clk 0:01:20]} 22. Nf4 {[%clk 0:01:25]}  Qf6 {[%clk 0:01:17]} 23. Nce2 {[%clk 0:01:16]}  Be6 {[%clk 0:01:12]} 24. Nxg6 {[%clk 0:00:53]}  Nxg6 {[%clk 0:01:10]} 25. Rxg6 {[%clk 0:00:53]}  Qxg6 {[%clk 0:01:10]} 26. Rxg6 {[%clk 0:00:53]}  Kxg6 {[%clk 0:01:11]} 27. Nf4+ {[%clk 0:00:53]}  Kf6 {[%clk 0:01:10]} 28. Qc5 {[%clk 0:00:52]}  Bxa2 {[%clk 0:00:59]} 29. Qd6+ {[%clk 0:00:34]}  Kf7 {[%clk 0:00:53]} 30. Qg6+ {[%clk 0:00:27]}  Ke7 {[%clk 0:00:52]} 31. Qh7+ {[%clk 0:00:06]}  Kd6 {[%clk 0:00:50]} 32. Qxh4 {[%clk 0:00:06]}  Rf8 {[%clk 0:00:41]} 33. Qh7 {[%clk 0:00:05]}  b5 {[%clk 0:00:37]} 34. Qb7 {[%clk 0:00:04]}  Rac8 {[%clk 0:00:35]} 35. Qb6 {[%clk 0:00:04]}  Rc7 {[%clk 0:00:27]} 36. Qxa5 {[%clk 0:00:04]}  Bg8 {[%clk 0:00:26]} 37. Qb4+ {[%clk 0:00:04]}  c5 {[%clk 0:00:25]} 38. dxc5+ {[%clk 0:00:03]}  Rxc5+ {[%clk 0:00:25]} 39. Kb1 {[%clk 0:00:03]}  Rc8 {[%clk 0:00:25]} 40. Qa5 {[%clk 0:00:03]}  Ke7 {[%clk 0:00:25]} 41. b4 {[%clk 0:00:01]}  Rc1+ {[%clk 0:00:24]} 42. Kb2 {[%clk 0:00:02]}  R8c2+ {[%clk 0:00:25]} 43. Ka3 {[%clk 0:00:02]}  Ra2# {[%clk 0:00:25]} 0-1


[Site "https://www.chess.com"]

[Event "Titled Tuesday Blitz November 15 Early 2022"]
[White "Mgeladze, Tamaz"]
[Black "Fathy, Elameir"]
[WhiteFideId "13601202"]
[BlackFideId "10600396"]
[WhiteElo "2288"]
[BlackElo "2311"]
[Result "1-0"]
[Round "04"]
[TimeControl "180+1"]
[Date "2022.11.16"]
[WhiteClock "0:00:16"]
[BlackClock "0:00:01"]

1. c4 {[%clk 0:03:00]}  c6 {[%clk 0:03:00]} 2. Nf3 {[%clk 0:03:00]}  d5 {[%clk 0:03:00]} 3. g3 {[%clk 0:03:01]}  Nf6 {[%clk 0:03:00]} 4. Bg2 {[%clk 0:03:02]}  dxc4 {[%clk 0:02:59]} 5. O-O {[%clk 0:03:02]}  Nbd7 {[%clk 0:02:58]} 6. Qc2 {[%clk 0:03:00]}  Nb6 {[%clk 0:02:57]} 7. a4 {[%clk 0:03:01]}  a5 {[%clk 0:02:57]} 8. Na3 {[%clk 0:03:01]}  g6 {[%clk 0:02:56]} 9. Nxc4 {[%clk 0:03:01]}  Nxc4 {[%clk 0:02:57]} 10. Qxc4 {[%clk 0:03:01]}  Bg7 {[%clk 0:02:58]} 11. d3 {[%clk 0:02:56]}  O-O {[%clk 0:02:57]} 12. Qh4 {[%clk 0:02:53]}  Qb6 {[%clk 0:02:29]} 13. Be3 {[%clk 0:02:43]}  Qxb2 {[%clk 0:02:00]} 14. Bd4 {[%clk 0:02:20]}  Qb4 {[%clk 0:01:28]} 15. Rab1 {[%clk 0:02:12]}  Qd6 {[%clk 0:01:22]} 16. Be5 {[%clk 0:02:07]}  Qd5 {[%clk 0:01:14]} 17. d4 {[%clk 0:01:56]}  Qd7 {[%clk 0:00:47]} 18. Ng5 {[%clk 0:01:53]}  Qg4 {[%clk 0:00:41]} 19. Qxg4 {[%clk 0:01:17]}  Nxg4 {[%clk 0:00:42]} 20. Bxg7 {[%clk 0:01:15]}  Kxg7 {[%clk 0:00:43]} 21. e4 {[%clk 0:01:08]}  Rb8 {[%clk 0:00:32]} 22. e5 {[%clk 0:01:05]}  Bf5 {[%clk 0:00:28]} 23. Rb6 {[%clk 0:01:05]}  Bd3 {[%clk 0:00:19]} 24. Rd1 {[%clk 0:01:03]}  Ba6 {[%clk 0:00:19]} 25. h3 {[%clk 0:00:58]}  Nh6 {[%clk 0:00:19]} 26. Bxc6 {[%clk 0:00:58]}  Nf5 {[%clk 0:00:18]} 27. Be4 {[%clk 0:00:47]}  Rfd8 {[%clk 0:00:11]} 28. d5 {[%clk 0:00:39]}  Rbc8 {[%clk 0:00:06]} 29. d6 {[%clk 0:00:30]}  exd6 {[%clk 0:00:06]} 30. exd6 {[%clk 0:00:31]}  Rc4 {[%clk 0:00:02]} 31. Bd3 {[%clk 0:00:24]}  Rd4 {[%clk 0:00:02]} 32. Bc2 {[%clk 0:00:22]}  Rxd1+ {[%clk 0:00:03]} 33. Bxd1 {[%clk 0:00:23]}  Rxd6 {[%clk 0:00:03]} 34. Rb1 {[%clk 0:00:21]}  Bd3 {[%clk 0:00:04]} 35. Rc1 {[%clk 0:00:21]}  Ba6 {[%clk 0:00:03]} 36. Bf3 {[%clk 0:00:21]}  Nd4 {[%clk 0:00:03]} 37. Kg2 {[%clk 0:00:19]}  Nxf3 {[%clk 0:00:03]} 38. Nxf3 {[%clk 0:00:20]}  h6 {[%clk 0:00:03]} 39. Ne5 {[%clk 0:00:20]}  Kf6 {[%clk 0:00:02]} 40. Ng4+ {[%clk 0:00:20]}  Kg7 {[%clk 0:00:02]} 41. Rc7 {[%clk 0:00:21]}  h5 {[%clk 0:00:02]} 42. Ne5 {[%clk 0:00:20]}  Rf6 {[%clk 0:00:02]} 43. f4 {[%clk 0:00:20]}  h4 {[%clk 0:00:01]} 44. Ng4 {[%clk 0:00:16]} 1-0


[Site "https://www.chess.com"]